[Event "14e Open International de Quenza"]
[Site "Quenza, France"]
[Date "????.??.??"]
[Round "3.12"]
[White "Tomasi, Albert"]
[Black "Kurt, Sascha"]
[Result "1-0"]
[TimeControl "5min+3s"]
[WhiteElo "2287"]
[BlackElo "2303"]

1. e4 {[%clk 00:05:03]} {[%emt 00:00:02]} c5 {[%clk 00:05:02]} {[%emt
00:00:04]} 2. Nf3 {[%clk 00:05:03]} {[%emt 00:00:02]} d6 {[%clk 00:05:02]}
{[%emt 00:00:01]} 3. d4 {[%clk 00:05:03]} {[%emt 00:00:01]} cxd4 {[%clk
00:05:02]} {[%emt 00:00:01]} 4. Nxd4 {[%clk 00:05:03]} {[%emt 00:00:01]} Nf6
{[%clk 00:05:02]} {[%emt 00:00:01]} 5. Nc3 {[%clk 00:05:03]} {[%emt 00:00:02]}
a6 {[%clk 00:05:02]} {[%emt 00:00:01]} 6. g3 {[%clk 00:05:03]} {[%emt
00:00:02]} e5 {[%clk 00:05:02]} {[%emt 00:00:02]} 7. Nde2 {[%clk 00:05:03]}
{[%emt 00:00:01]} Be7 {[%clk 00:04:59]} {[%emt 00:00:05]} 8. Bg2 {[%clk
00:05:03]} {[%emt 00:00:02]} O-O {[%clk 00:04:57]} {[%emt 00:00:05]} 9. O-O
{[%clk 00:05:03]} {[%emt 00:00:03]} b5 {[%clk 00:04:57]} {[%emt 00:00:01]} 10.
Nd5 {[%clk 00:05:03]} {[%emt 00:00:02]} Be6 {[%clk 00:04:28]} {[%emt 00:00:32]}
11. Nec3 {[%clk 00:05:03]} {[%emt 00:00:04]} Nbd7 {[%clk 00:04:08]} {[%emt
00:00:24]} 12. Be3 {[%clk 00:05:02]} {[%emt 00:00:03]} Rc8 {[%clk 00:03:53]}
{[%emt 00:00:18]} 13. a4 {[%clk 00:04:58]} {[%emt 00:00:07]} b4 {[%clk
00:03:51]} {[%emt 00:00:05]} 14. Nxb4 {[%clk 00:04:58]} {[%emt 00:00:03]} Bc4
{[%clk 00:03:48]} {[%emt 00:00:07]} 15. Re1 {[%clk 00:04:57]} {[%emt 00:00:04]}
Rb8 {[%clk 00:03:37]} {[%emt 00:00:14]} 16. Nc6 {[%clk 00:04:57]} {[%emt
00:00:02]} Qe8 {[%clk 00:03:33]} {[%emt 00:00:07]} 17. b3 {[%clk 00:04:38]}
{[%emt 00:00:21]} Be6 {[%clk 00:03:19]} {[%emt 00:00:16]} 18. Nxb8 {[%clk
00:04:38]} {[%emt 00:00:03]} Qxb8 {[%clk 00:03:19]} {[%emt 00:00:03]} 19. Nd5
{[%clk 00:04:38]} {[%emt 00:00:02]} Nxd5 {[%clk 00:03:16]} {[%emt 00:00:06]} 20.
exd5 {[%clk 00:04:38]} {[%emt 00:00:02]} Bf5 {[%clk 00:03:16]} {[%emt
00:00:01]} 21. Qd2 {[%clk 00:04:25]} {[%emt 00:00:17]} Rc8 {[%clk 00:03:11]}
{[%emt 00:00:08]} 22. Rec1 {[%clk 00:04:25]} {[%emt 00:00:01]} e4 {[%clk
00:03:10]} {[%emt 00:00:04]} 23. Bd4 {[%clk 00:03:10]} {[%emt 00:01:18]} Bg6
{[%clk 00:02:32]} {[%emt 00:00:41]} 24. Rab1 {[%clk 00:03:05]} {[%emt
00:00:08]} h6 {[%clk 00:02:26]} {[%emt 00:00:09]} 25. c4 {[%clk 00:02:41]}
{[%emt 00:00:26]} f5 {[%clk 00:01:52]} {[%emt 00:00:37]} 26. b4 {[%clk
00:02:33]} {[%emt 00:00:11]} Qc7 {[%clk 00:00:56]} {[%emt 00:00:59]} 27. Qc3
{[%clk 00:01:22]} {[%emt 00:01:14]} Bg5 {[%clk 00:00:33]} {[%emt 00:00:27]} 28.
Bxg7 {[%clk 00:01:02]} {[%emt 00:00:23]} e3 {[%clk 00:00:16]} {[%emt 00:00:20]}
29. f4 {[%clk 00:01:01]} {[%emt 00:00:04]} Be7 {[%clk 00:00:09]} {[%emt
00:00:10]} 30. Bd4 {[%clk 00:01:00]} {[%emt 00:00:04]} e2 {[%clk 00:00:09]}
{[%emt 00:00:02]} 31. Qe3 {[%clk 00:00:58]} {[%emt 00:00:05]} Re8 {[%clk
00:00:08]} {[%emt 00:00:04]} 32. Qxe2 {[%clk 00:00:55]} {[%emt 00:00:05]} h5
{[%clk 00:00:06]} {[%emt 00:00:05]} 33. Qd2 {[%clk 00:00:54]} {[%emt 00:00:04]}
h4 {[%clk 00:00:06]} {[%emt 00:00:01]} 34. Rb3 {[%clk 00:00:31]} {[%emt
00:00:25]} Kf7 {[%clk 00:00:06]} {[%emt 00:00:02]} 35. Re3 {[%clk 00:00:31]}
{[%emt 00:00:02]} Bf6 {[%clk 00:00:06]} {[%emt 00:00:01]} 36. Rxe8 {[%clk
00:00:31]} {[%emt 00:00:03]} Kxe8 {[%clk 00:00:06]} 37. Bxf6 {[%clk 00:00:31]}
{[%emt 00:00:03]} Nxf6 {[%clk 00:00:06]} {[%emt 00:00:01]} 38. c5 {[%clk
00:00:31]} hxg3 {[%clk 00:00:06]} {[%emt 00:00:04]} 39. hxg3 {[%clk 00:00:31]}
{[%emt 00:00:01]} Ng4 {[%clk 00:00:06]} {[%emt 00:00:03]} 40. Bf3 {[%clk
00:00:25]} {[%emt 00:00:09]} Nf6 {[%clk 00:00:04]} {[%emt 00:00:06]} 41. Qe3+
{[%clk 00:00:21]} {[%emt 00:00:07]} Kf8 {[%clk 00:00:04]} 42. Qe6 {[%clk
00:00:21]} {[%emt 00:00:02]} Kg7 {[%clk 00:00:04]} {[%emt 00:00:04]} 43. Qxd6
{[%clk 00:00:21]} {[%emt 00:00:02]} Qf7 {[%clk 00:00:04]} {[%emt 00:00:02]} 44.
Re1 {[%clk 00:00:21]} {[%emt 00:00:02]} Ne4 {[%clk 00:00:04]} {[%emt 00:00:03]}
45. Qe5+ {[%clk 00:00:21]} {[%emt 00:00:02]} Kh7 {[%clk 00:00:04]} {[%emt
00:00:01]} 46. Bxe4 {[%clk 00:00:21]} {[%emt 00:00:02]} fxe4 {[%clk 00:00:04]}
47. Kf2 {[%clk 00:00:21]} Qd7 {[%clk 00:00:04]} {[%emt 00:00:01]} 48. Rh1+
{[%clk 00:00:21]} Kg8 {[%emt 00:00:02]} 49. Qe6+ {[%clk 00:00:21]} {[%emt
00:00:02]} Qxe6 {[%clk 00:00:04]} {[%emt 00:00:01]} 50. dxe6 {[%clk 00:00:21]}
Kf8 {[%clk 00:00:04]} 51. g4 {[%clk 00:00:21]} {[%emt 00:00:01]} Ke7 {[%clk
00:00:04]} {[%emt 00:00:01]} 52. f5 {[%clk 00:00:21]} Be8 {[%emt 00:00:03]} 53.
Ke3 {[%clk 00:00:21]} Bxa4 {[%emt 00:00:03]} 54. Rh7+ {[%clk 00:00:21]} Kf6
{[%clk 00:00:04]} 55. Kxe4 {[%clk 00:00:21]} {[%emt 00:00:02]} Bc6+ {[%clk
00:00:04]} 56. Kf4 {[%clk 00:00:21]} {[%emt 00:00:03]} Bd7 {[%clk 00:00:04]}
{[%emt 00:00:01]} 57. g5# 1-0

[Event "14e Open International de Quenza"]
[Site "Quenza, France"]
[Date "????.??.??"]
[Round "4.1"]
[White "Ratier-Fontana, Matteo"]
[Black "Dardha, Daniel"]
[Result "0-1"]
[TimeControl "5min+3s"]
[WhiteElo "2275"]
[BlackElo "2627"]

1. d4 {[%clk 00:05:03]} Nf6 {[%clk 00:05:03]} {[%emt 00:00:02]} 2. Bf4 {[%clk
00:05:03]} {[%emt 00:00:01]} Nh5 {[%clk 00:05:03]} {[%emt 00:00:02]} 3. Bg5
{[%clk 00:04:53]} {[%emt 00:00:14]} h6 {[%clk 00:05:03]} {[%emt 00:00:04]} 4.
Bh4 {[%clk 00:04:53]} g5 {[%emt 00:00:06]} 5. e3 Nf6 {[%clk 00:04:53]} {[%emt
00:00:11]} 6. Bg3 {[%clk 00:04:53]} {[%emt 00:00:01]} Bg7 {[%clk 00:04:51]}
{[%emt 00:00:04]} 7. c4 {[%clk 00:04:40]} {[%emt 00:00:16]} c5 {[%clk
00:04:48]} {[%emt 00:00:06]} 8. Nc3 {[%clk 00:04:40]} {[%emt 00:00:02]} d6
{[%clk 00:04:46]} {[%emt 00:00:04]} 9. h4 {[%clk 00:04:14]} {[%emt 00:00:29]}
Nc6 {[%clk 00:04:38]} {[%emt 00:00:12]} 10. hxg5 {[%clk 00:04:08]} {[%emt
00:00:09]} hxg5 {[%clk 00:04:38]} {[%emt 00:00:01]} 11. Rxh8+ {[%clk 00:04:08]}
{[%emt 00:00:02]} Bxh8 {[%clk 00:04:38]} {[%emt 00:00:02]} 12. Nf3 {[%clk
00:03:47]} {[%emt 00:00:24]} g4 {[%emt 00:00:05]} 13. d5 gxf3 {[%clk 00:04:21]}
{[%emt 00:00:18]} 14. dxc6 {[%clk 00:03:47]} bxc6 {[%clk 00:04:21]} {[%emt
00:00:02]} 15. gxf3 {[%clk 00:03:17]} {[%emt 00:00:33]} Rb8 {[%clk 00:04:15]}
{[%emt 00:00:09]} 16. Qc2 {[%clk 00:03:12]} {[%emt 00:00:08]} Qa5 {[%clk
00:04:09]} {[%emt 00:00:09]} 17. O-O-O {[%clk 00:03:09]} {[%emt 00:00:06]} Be6
{[%clk 00:03:55]} {[%emt 00:00:17]} 18. f4 {[%clk 00:02:07]} {[%emt 00:01:05]}
Qb4 {[%clk 00:02:49]} {[%emt 00:01:09]} 19. Rd2 {[%clk 00:01:54]} {[%emt
00:00:16]} Bxc4 {[%clk 00:02:33]} {[%emt 00:00:18]} 20. a3 {[%clk 00:01:28]}
{[%emt 00:00:30]} Qb3 {[%clk 00:02:33]} 21. Qxb3 {[%clk 00:01:23]} {[%emt
00:00:08]} Bxb3 {[%clk 00:02:33]} {[%emt 00:00:01]} 22. f3 {[%clk 00:01:18]}
{[%emt 00:00:08]} Nd5 {[%clk 00:02:30]} {[%emt 00:00:06]} 23. Nxd5 {[%clk
00:01:17]} {[%emt 00:00:04]} cxd5 {[%clk 00:02:30]} {[%emt 00:00:01]} 24. Rh2
{[%clk 00:01:05]} {[%emt 00:00:16]} Bf6 {[%clk 00:02:30]} {[%emt 00:00:02]} 25.
e4 {[%clk 00:01:02]} {[%emt 00:00:07]} dxe4 {[%clk 00:02:27]} {[%emt 00:00:06]}
26. fxe4 {[%clk 00:01:02]} Rb6 {[%clk 00:01:51]} {[%emt 00:00:40]} 27. Rh5
{[%clk 00:00:50]} {[%emt 00:00:14]} Bxb2+ {[%clk 00:01:48]} {[%emt 00:00:05]}
28. Kd2 {[%clk 00:00:50]} {[%emt 00:00:02]} c4 {[%clk 00:01:41]} {[%emt
00:00:10]} 29. f5 {[%clk 00:00:16]} {[%emt 00:00:38]} c3+ {[%clk 00:01:39]}
{[%emt 00:00:04]} 30. Kd3 {[%clk 00:00:16]} c2 {[%clk 00:01:38]} {[%emt
00:00:04]} 31. Bf4 {[%clk 00:00:16]} c1=Q {[%clk 00:01:36]} {[%emt 00:00:05]}
32. Bxc1 {[%clk 00:00:16]} {[%emt 00:00:02]} Bxc1 {[%clk 00:01:36]} 33. Rh8+
{[%clk 00:00:16]} Kd7 {[%clk 00:01:36]} 0-1

[Event "14e Open International de Quenza"]
[Site "Quenza, France"]
[Date "????.??.??"]
[Round "4.2"]
[White "Bellahcene, Bilel"]
[Black "Toktomushev, Teimur"]
[Result "1-0"]
[TimeControl "5min+3s"]
[WhiteElo "2513"]
[BlackElo "2401"]

1. e4 {[%clk 00:05:03]} {[%emt 00:00:01]} c5 {[%clk 00:05:03]} {[%emt
00:00:02]} 2. Nf3 {[%clk 00:05:03]} e6 {[%emt 00:00:01]} 3. d4 cxd4 {[%clk
00:05:03]} {[%emt 00:00:02]} 4. Nxd4 {[%clk 00:05:03]} a6 {[%clk 00:05:03]}
{[%emt 00:00:02]} 5. c4 {[%clk 00:05:03]} {[%emt 00:00:01]} Nf6 {[%clk
00:05:03]} {[%emt 00:00:02]} 6. Nc3 {[%clk 00:05:03]} Qc7 {[%clk 00:04:59]}
{[%emt 00:00:08]} 7. a3 {[%clk 00:05:03]} {[%emt 00:00:01]} b6 {[%clk
00:04:59]} {[%emt 00:00:01]} 8. Be3 {[%clk 00:05:03]} {[%emt 00:00:02]} Bb7
{[%clk 00:04:59]} {[%emt 00:00:02]} 9. f3 {[%clk 00:05:03]} d6 {[%emt
00:00:06]} 10. Qd2 {[%clk 00:05:01]} {[%emt 00:00:02]} Be7 {[%clk 00:04:59]}
{[%emt 00:00:02]} 11. g4 {[%clk 00:04:58]} {[%emt 00:00:06]} O-O {[%clk
00:04:57]} {[%emt 00:00:05]} 12. g5 {[%clk 00:04:56]} {[%emt 00:00:05]} Nh5
{[%clk 00:04:24]} {[%emt 00:00:35]} 13. O-O-O {[%clk 00:04:39]} {[%emt
00:00:20]} Nd7 {[%clk 00:04:07]} {[%emt 00:00:21]} 14. Kb1 {[%clk 00:04:39]}
{[%emt 00:00:02]} g6 {[%clk 00:03:54]} {[%emt 00:00:16]} 15. Be2 {[%clk
00:04:14]} {[%emt 00:00:28]} Rac8 {[%clk 00:03:28]} {[%emt 00:00:29]} 16. Rc1
{[%clk 00:04:14]} {[%emt 00:00:03]} Ne5 {[%clk 00:03:13]} {[%emt 00:00:18]} 17.
Na4 {[%clk 00:03:39]} {[%emt 00:00:38]} Nd7 {[%clk 00:02:33]} {[%emt 00:00:43]}
18. Ka2 {[%clk 00:02:14]} {[%emt 00:01:28]} Qb8 {[%clk 00:00:58]} {[%emt
00:01:38]} 19. Rhe1 {[%clk 00:02:08]} {[%emt 00:00:09]} Ba8 {[%clk 00:00:53]}
{[%emt 00:00:09]} 20. Nc3 {[%clk 00:02:03]} {[%emt 00:00:08]} Ne5 {[%clk
00:00:30]} {[%emt 00:00:25]} 21. Nd1 {[%clk 00:02:01]} {[%emt 00:00:05]} b5
{[%clk 00:00:26]} {[%emt 00:00:08]} 22. cxb5 {[%clk 00:01:57]} {[%emt
00:00:07]} Rxc1 {[%clk 00:00:26]} 23. Qxc1 {[%clk 00:01:57]} Rc8 {[%clk
00:00:21]} {[%emt 00:00:08]} 24. Nc3 {[%clk 00:01:49]} {[%emt 00:00:11]} d5
{[%clk 00:00:21]} {[%emt 00:00:03]} 25. Qd1 {[%clk 00:01:18]} {[%emt 00:00:34]}
dxe4 {[%clk 00:00:21]} {[%emt 00:00:03]} 26. fxe4 {[%clk 00:01:18]} {[%emt
00:00:01]} Nc4 {[%clk 00:00:18]} {[%emt 00:00:06]} 27. Bxc4 {[%clk 00:01:13]}
{[%emt 00:00:08]} Rxc4 {[%clk 00:00:18]} {[%emt 00:00:01]} 28. bxa6 {[%clk
00:01:09]} {[%emt 00:00:07]} Qc8 {[%clk 00:00:13]} {[%emt 00:00:08]} 29. Ndb5
{[%clk 00:01:03]} {[%emt 00:00:08]} Qxa6 {[%clk 00:00:09]} {[%emt 00:00:06]} 30.
Qd7 {[%clk 00:01:01]} {[%emt 00:00:05]} Bf8 {[%clk 00:00:09]} {[%emt 00:00:02]}
31. Rf1 {[%clk 00:00:58]} {[%emt 00:00:06]} Qb7 {[%clk 00:00:09]} {[%emt
00:00:03]} 32. Rxf7 {[%clk 00:00:55]} {[%emt 00:00:06]} Qxd7 {[%clk 00:00:09]}
{[%emt 00:00:03]} 33. Rxd7 {[%clk 00:00:55]} Bxe4 {[%clk 00:00:09]} {[%emt
00:00:02]} 34. Rd8 {[%clk 00:00:43]} {[%emt 00:00:14]} Bc6 {[%clk 00:00:07]}
{[%emt 00:00:05]} 35. Nd4 {[%clk 00:00:41]} {[%emt 00:00:06]} Kf7 {[%emt
00:00:07]} 36. Kb3 {[%clk 00:00:40]} {[%emt 00:00:03]} Rc5 {[%clk 00:00:04]}
{[%emt 00:00:03]} 37. Rxf8+ {[%clk 00:00:38]} {[%emt 00:00:04]} 1-0

[Event "14e Open International de Quenza"]
[Site "Quenza, France"]
[Date "????.??.??"]
[Round "4.3"]
[White "Fressinet, Laurent"]
[Black "Tomasi, Albert"]
[Result "1-0"]
[TimeControl "5min+3s"]
[WhiteElo "2605"]
[BlackElo "2287"]

1. d4 {[%clk 00:05:03]} {[%emt 00:00:02]} d5 {[%clk 00:05:03]} {[%emt
00:00:02]} 2. Nf3 {[%clk 00:05:03]} {[%emt 00:00:02]} Nf6 {[%clk 00:05:03]}
{[%emt 00:00:02]} 3. c4 {[%clk 00:05:03]} {[%emt 00:00:01]} c6 {[%clk
00:05:03]} {[%emt 00:00:03]} 4. g3 {[%clk 00:05:03]} {[%emt 00:00:01]} g6
{[%clk 00:05:03]} {[%emt 00:00:04]} 5. Bg2 {[%clk 00:05:03]} {[%emt 00:00:02]}
Bg7 {[%clk 00:05:03]} {[%emt 00:00:02]} 6. O-O {[%clk 00:05:03]} {[%emt
00:00:03]} O-O {[%clk 00:05:03]} {[%emt 00:00:03]} 7. Nc3 {[%clk 00:05:03]}
{[%emt 00:00:02]} Ne4 {[%clk 00:04:48]} {[%emt 00:00:18]} 8. Qb3 {[%clk
00:04:49]} {[%emt 00:00:18]} Nxc3 {[%clk 00:04:22]} {[%emt 00:00:29]} 9. bxc3
{[%clk 00:04:49]} {[%emt 00:00:01]} dxc4 {[%clk 00:04:20]} {[%emt 00:00:05]} 10.
Qxc4 {[%clk 00:04:49]} {[%emt 00:00:01]} Nd7 {[%clk 00:04:20]} 11. e4 {[%clk
00:04:14]} {[%emt 00:00:37]} Qa5 {[%clk 00:04:19]} {[%emt 00:00:05]} 12. Bd2
{[%clk 00:04:00]} {[%emt 00:00:17]} Nb6 {[%clk 00:04:15]} {[%emt 00:00:08]} 13.
Qd3 {[%clk 00:03:50]} {[%emt 00:00:12]} Be6 {[%clk 00:04:11]} {[%emt 00:00:07]}
14. Rfe1 {[%clk 00:03:25]} {[%emt 00:00:28]} Rad8 {[%clk 00:04:10]} {[%emt
00:00:05]} 15. Qc2 {[%clk 00:03:17]} {[%emt 00:00:10]} Nc4 {[%clk 00:04:07]}
{[%emt 00:00:07]} 16. Bf4 {[%clk 00:03:14]} {[%emt 00:00:06]} h6 {[%clk
00:03:55]} {[%emt 00:00:15]} 17. h4 {[%clk 00:03:14]} {[%emt 00:00:01]} Na3
{[%clk 00:03:03]} {[%emt 00:00:55]} 18. Qc1 {[%clk 00:03:08]} {[%emt 00:00:08]}
Kh7 {[%clk 00:03:01]} {[%emt 00:00:05]} 19. Nd2 {[%clk 00:03:04]} {[%emt
00:00:07]} Nb5 {[%clk 00:02:56]} {[%emt 00:00:08]} 20. Re3 {[%clk 00:02:57]}
{[%emt 00:00:10]} Nd6 {[%clk 00:01:39]} {[%emt 00:01:19]} 21. Nb3 {[%clk
00:02:53]} {[%emt 00:00:07]} Qc7 {[%clk 00:01:21]} {[%emt 00:00:21]} 22. Nc5
{[%clk 00:02:39]} {[%emt 00:00:17]} Bg4 {[%clk 00:01:18]} {[%emt 00:00:06]} 23.
e5 {[%clk 00:02:34]} {[%emt 00:00:08]} Nc4 {[%clk 00:01:18]} {[%emt 00:00:02]}
24. Re1 {[%clk 00:02:34]} {[%emt 00:00:01]} b6 {[%clk 00:01:06]} {[%emt
00:00:16]} 25. e6 {[%clk 00:02:17]} {[%emt 00:00:20]} Qc8 {[%clk 00:01:06]}
{[%emt 00:00:02]} 26. Nd7 {[%clk 00:02:17]} {[%emt 00:00:01]} Rxd7 {[%clk
00:01:00]} {[%emt 00:00:09]} 27. exd7 {[%clk 00:02:17]} {[%emt 00:00:01]} Qxd7
{[%clk 00:01:00]} {[%emt 00:00:01]} 28. Qc2 {[%clk 00:02:10]} {[%emt 00:00:09]}
c5 {[%clk 00:00:55]} {[%emt 00:00:09]} 29. dxc5 {[%clk 00:01:55]} {[%emt
00:00:19]} bxc5 {[%clk 00:00:55]} {[%emt 00:00:01]} 30. Qe4 {[%clk 00:01:55]}
{[%emt 00:00:02]} Be6 {[%clk 00:00:31]} {[%emt 00:00:27]} 31. h5 {[%clk
00:01:55]} {[%emt 00:00:02]} Bxc3 {[%clk 00:00:14]} {[%emt 00:00:20]} 32. hxg6+
{[%clk 00:01:55]} {[%emt 00:00:02]} Kg7 {[%clk 00:00:14]} 33. Rad1 {[%clk
00:01:45]} {[%emt 00:00:13]} Bd4 {[%clk 00:00:10]} {[%emt 00:00:08]} 34. gxf7
{[%clk 00:01:43]} {[%emt 00:00:05]} Bxf7 {[%clk 00:00:10]} {[%emt 00:00:01]} 35.
Qxe7 {[%clk 00:01:31]} {[%emt 00:00:15]} Qf5 {[%clk 00:00:10]} 36. Bxh6+ {[%clk
00:01:15]} {[%emt 00:00:19]} Kxh6 {[%clk 00:00:10]} {[%emt 00:00:02]} 37. Qxf8+
{[%clk 00:01:15]} {[%emt 00:00:01]} Kg6 {[%clk 00:00:10]} 38. Rxd4 {[%clk
00:01:09]} {[%emt 00:00:09]} cxd4 {[%clk 00:00:10]} {[%emt 00:00:01]} 39. Be4
{[%clk 00:01:09]} {[%emt 00:00:02]} 1-0

[Event "14e Open International de Quenza"]
[Site "Quenza, France"]
[Date "????.??.??"]
[Round "4.4"]
[White "Calistri, Tristan"]
[Black "Hou, Yifan"]
[Result "0-1"]
[TimeControl "5min+3s"]
[WhiteElo "2198"]
[BlackElo "2633"]

1. e4 {[%clk 00:05:03]} {[%emt 00:00:01]} c5 {[%clk 00:05:03]} {[%emt
00:00:01]} 2. Nc3 {[%clk 00:05:03]} {[%emt 00:00:01]} a6 {[%clk 00:05:02]}
{[%emt 00:00:05]} 3. g3 {[%clk 00:05:03]} {[%emt 00:00:03]} b5 {[%clk
00:05:02]} {[%emt 00:00:03]} 4. Bg2 {[%clk 00:05:03]} {[%emt 00:00:01]} Bb7
{[%clk 00:05:02]} {[%emt 00:00:02]} 5. Nge2 {[%clk 00:05:03]} {[%emt 00:00:02]}
d6 {[%clk 00:05:02]} {[%emt 00:00:03]} 6. d4 {[%clk 00:04:46]} {[%emt
00:00:20]} cxd4 {[%clk 00:05:02]} {[%emt 00:00:03]} 7. Nxd4 {[%clk 00:04:46]}
{[%emt 00:00:02]} Nf6 {[%clk 00:04:54]} {[%emt 00:00:11]} 8. O-O {[%clk
00:04:45]} {[%emt 00:00:03]} e6 {[%clk 00:04:51]} {[%emt 00:00:06]} 9. Re1
{[%clk 00:04:42]} {[%emt 00:00:06]} Nbd7 {[%clk 00:04:38]} {[%emt 00:00:17]} 10.
e5 {[%clk 00:04:12]} {[%emt 00:00:33]} dxe5 {[%clk 00:03:49]} {[%emt 00:00:53]}
11. Bxb7 {[%clk 00:03:07]} {[%emt 00:01:07]} exd4 {[%clk 00:03:49]} {[%emt
00:00:02]} 12. Bxa8 {[%clk 00:02:41]} {[%emt 00:00:29]} dxc3 {[%clk 00:03:49]}
{[%emt 00:00:01]} 13. Bg2 {[%clk 00:02:14]} {[%emt 00:00:29]} cxb2 {[%clk
00:03:19]} {[%emt 00:00:33]} 14. Bxb2 {[%clk 00:02:14]} {[%emt 00:00:02]} Bc5
{[%clk 00:03:19]} {[%emt 00:00:01]} 15. Bd4 {[%clk 00:01:59]} {[%emt 00:00:18]}
Qb6 {[%clk 00:03:05]} {[%emt 00:00:18]} 16. Bxc5 {[%clk 00:01:42]} {[%emt
00:00:21]} Qxc5 {[%clk 00:03:05]} {[%emt 00:00:02]} 17. a4 {[%clk 00:01:42]}
{[%emt 00:00:03]} O-O {[%clk 00:03:01]} {[%emt 00:00:06]} 18. axb5 {[%clk
00:01:40]} {[%emt 00:00:05]} axb5 {[%clk 00:03:01]} {[%emt 00:00:01]} 19. Qe2
{[%clk 00:01:27]} {[%emt 00:00:16]} h5 {[%clk 00:02:27]} {[%emt 00:00:37]} 20.
Ra5 {[%clk 00:01:23]} {[%emt 00:00:07]} Rc8 {[%clk 00:02:05]} {[%emt 00:00:25]}
21. Rc1 {[%clk 00:01:06]} {[%emt 00:00:20]} Qc4 {[%clk 00:01:02]} {[%emt
00:01:07]} 22. Bf1 {[%clk 00:00:45]} {[%emt 00:00:23]} Qxe2 {[%clk 00:00:31]}
{[%emt 00:00:33]} 23. Bxe2 {[%clk 00:00:45]} {[%emt 00:00:01]} b4 {[%clk
00:00:31]} 24. Bxh5 {[%clk 00:00:24]} {[%emt 00:00:24]} Nc5 {[%clk 00:00:26]}
{[%emt 00:00:08]} 25. Rb1 {[%clk 00:00:14]} {[%emt 00:00:13]} Nxh5 {[%clk
00:00:25]} {[%emt 00:00:05]} 26. Rxb4 {[%clk 00:00:14]} {[%emt 00:00:03]} Nf6
{[%clk 00:00:25]} 27. Rc4 {[%clk 00:00:08]} {[%emt 00:00:09]} Nfd7 {[%clk
00:00:25]} 28. f4 {[%clk 00:00:04]} {[%emt 00:00:06]} Kf8 {[%clk 00:00:25]} 29.
Kf2 {[%emt 00:00:05]} Ke7 30. Ke3 Kd6 {[%emt 00:00:03]} 31. Kd4 f6 {[%emt
00:00:03]} 0-1

[Event "14e Open International de Quenza"]
[Site "Quenza, France"]
[Date "????.??.??"]
[Round "4.5"]
[White "Maurizzi, Marc Andria"]
[Black "Ternault, Mathieu"]
[Result "1-0"]
[TimeControl "5min+3s"]
[WhiteElo "2604"]
[BlackElo "2276"]

1. Nf3 {[%clk 00:05:03]} {[%emt 00:00:02]} Nc6 {[%clk 00:05:03]} {[%emt
00:00:03]} 2. c4 {[%clk 00:05:01]} {[%emt 00:00:05]} Nf6 {[%clk 00:05:03]}
{[%emt 00:00:03]} 3. Nc3 {[%clk 00:05:01]} {[%emt 00:00:01]} e5 {[%clk
00:04:54]} {[%emt 00:00:12]} 4. g3 {[%clk 00:04:59]} {[%emt 00:00:05]} Nd4
{[%clk 00:04:29]} {[%emt 00:00:28]} 5. Bg2 {[%clk 00:04:54]} {[%emt 00:00:08]}
Nxf3+ {[%clk 00:04:29]} {[%emt 00:00:03]} 6. Bxf3 {[%clk 00:04:54]} Bc5 {[%clk
00:04:22]} {[%emt 00:00:10]} 7. O-O {[%clk 00:04:54]} {[%emt 00:00:03]} d6
{[%clk 00:04:17]} {[%emt 00:00:08]} 8. b4 {[%clk 00:04:48]} {[%emt 00:00:10]}
Bd4 {[%clk 00:04:17]} {[%emt 00:00:03]} 9. Bb2 {[%clk 00:04:47]} {[%emt
00:00:03]} a5 {[%clk 00:04:00]} {[%emt 00:00:20]} 10. b5 {[%clk 00:04:34]}
{[%emt 00:00:16]} Bh3 {[%clk 00:03:12]} {[%emt 00:00:51]} 11. Bxb7 {[%clk
00:04:32]} {[%emt 00:00:05]} Bxf1 {[%clk 00:03:07]} {[%emt 00:00:08]} 12. Bxa8
{[%clk 00:04:18]} {[%emt 00:00:17]} Qxa8 {[%clk 00:03:07]} {[%emt 00:00:01]} 13.
Qxf1 {[%clk 00:04:18]} O-O {[%clk 00:02:29]} {[%emt 00:00:42]} 14. Qg2 {[%clk
00:04:05]} {[%emt 00:00:16]} e4 {[%clk 00:02:29]} 15. Rf1 {[%clk 00:03:26]}
{[%emt 00:00:42]} Ng4 {[%clk 00:02:03]} {[%emt 00:00:29]} 16. e3 {[%clk
00:03:09]} {[%emt 00:00:20]} Bxc3 {[%clk 00:01:31]} {[%emt 00:00:35]} 17. Bxc3
{[%clk 00:03:09]} {[%emt 00:00:01]} d5 {[%clk 00:01:25]} {[%emt 00:00:09]} 18.
c5 {[%clk 00:02:59]} {[%emt 00:00:13]} f5 {[%clk 00:01:25]} {[%emt 00:00:01]}
19. Rb1 {[%clk 00:02:59]} {[%emt 00:00:03]} Qe8 {[%clk 00:01:11]} {[%emt
00:00:17]} 20. b6 {[%clk 00:02:54]} {[%emt 00:00:08]} cxb6 {[%clk 00:01:11]} 21.
cxb6 {[%clk 00:02:54]} Qa4 {[%clk 00:00:48]} {[%emt 00:00:25]} 22. Qf1 {[%clk
00:02:54]} f4 {[%clk 00:00:32]} {[%emt 00:00:19]} 23. b7 {[%clk 00:02:43]}
{[%emt 00:00:15]} Rb8 {[%clk 00:00:10]} {[%emt 00:00:25]} 24. h3 {[%clk
00:02:43]} {[%emt 00:00:01]} Nf6 {[%clk 00:00:08]} {[%emt 00:00:05]} 25. Be5
{[%clk 00:02:43]} {[%emt 00:00:01]} Nd7 {[%clk 00:00:06]} {[%emt 00:00:05]} 26.
Bxb8 {[%clk 00:02:43]} {[%emt 00:00:01]} Nxb8 {[%clk 00:00:06]} 27. Qb5 {[%clk
00:02:43]} {[%emt 00:00:01]} 1-0